bitfinex-derivatives/quotes_BTCF0:USTF0_20251023
["timestamp","ask_amount","ask_price","bid_price","bid_amount"]
[1761238229287,0.90924134,110040.0,110030.0,0.3]
[1761238230097,0.71302717,110040.0,110030.0,0.436004]
[1761238230703,0.8765866,110040.0,110030.0,0.436004]
[1761238230993,0.7129961,110040.0,110030.0,0.436004]
[1761238231190,0.8765866,110040.0,110030.0,0.436004]
[1761238231398,0.9091792,110040.0,110030.0,0.3]
[1761238231593,0.9091792,110040.0,110030.0,0.34514]
[1761238231988,0.8765866,110040.0,110030.0,0.34514]
[1761238232297,0.5494056,110040.0,110030.0,0.34514]
[1761238232594,0.8765866,110040.0,110030.0,0.34514]
[1761238233197,0.9091792,110040.0,110030.0,0.34514]
[1761238234102,0.9091792,110040.0,110030.0,0.4360042]
[1761238234307,0.9091792,110040.0,110030.0,0.34514]
[1761238237907,0.5091792,110040.0,110030.0,0.3]
[1761238238088,0.55812013,110040.0,110030.0,0.3]
[1761238238698,0.1491041,110030.0,110020.0,0.04514]
[1761238239000,0.8289577,110030.0,110020.0,0.29]
[1761238239305,0.87789863,110030.0,110020.0,0.29]
[1761238240001,0.87789863,110030.0,110020.0,0.292]
[1761238241109,0.87789863,110030.0,110020.0,0.293]
[1761238241501,0.87789863,110030.0,110020.0,0.4290124]
[1761238241502,0.5017767,110030.0,110020.0,0.4290124]
[1761238241703,0.6327746,110030.0,110020.0,0.4290124]
[1761238241904,0.6327746,110030.0,110020.0,0.4397824]
[1761238242306,0.6653672,110030.0,110020.0,0.4397824]
[1761238242803,0.3452872,110030.0,110020.0,0.4397824]
[1761238243109,0.1690162,110030.0,110020.0,0.7659634]
[1761238243293,0.02328,110030.0,110020.0,0.7659634]
[1761238243496,0.02328,110030.0,110020.0,0.6023729]
[1761238243696,0.02328,110030.0,110020.0,0.4387824]
[1761238243899,0.53803503,110040.0,110030.0,0.0908642]
[1761238244102,0.71430553,110040.0,110030.0,0.5895947]
[1761238245003,0.5017684,110040.0,110030.0,0.6023647]
[1761238245208,0.6526789,110040.0,110030.0,0.6023647]
[1761238246208,0.1690084,110040.0,110030.0,0.6023647]
[1761238246608,0.3325989,110040.0,110030.0,0.6023647]
[1761238246810,0.3325989,110040.0,110030.0,0.4387742]
[1761238247611,0.3452789,110040.0,110030.0,0.4387742]
[1761238251014,0.3452789,110040.0,110030.0,0.6023647]
[1761238251312,0.3325989,110040.0,110030.0,0.6023647]
[1761238251718,0.3325989,110040.0,110030.0,0.4387742]
[1761238251914,0.3325989,110040.0,110030.0,0.6023647]
[1761238252216,0.38153983,110040.0,110030.0,0.6023647]
[1761238252912,0.3325989,110040.0,110030.0,0.6023647]
[1761238253113,0.38153983,110040.0,110030.0,0.4387742]
[1761238254218,0.38153983,110040.0,110030.0,0.6023647]
[1761238255611,0.39485983,110040.0,110030.0,0.4260042]
[1761238257012,0.39485983,110040.0,110030.0,0.4390142]
[1761238257319,0.39485983,110040.0,110030.0,0.6026047]
[1761238259011,0.39485983,110040.0,110030.0,0.4390142]
[1761238259720,0.3459189,110040.0,110030.0,0.4390142]
[1761238260317,0.3459189,110040.0,110030.0,0.6026047]
[1761238260626,0.3133263,110040.0,110030.0,0.6026047]
[1761238262019,0.3459189,110040.0,110030.0,0.6026047]
[1761238262313,0.0781526,110040.0,110030.0,0.6026047]
[1761238262715,0.0781526,110040.0,110030.0,0.9226047]
[1761238262911,0.0325926,110040.0,110030.0,0.9226047]
[1761238263923,0.04894093,110050.0,110040.0,0.1484957]
[1761238264219,0.04894093,110050.0,110040.0,0.6120862]
[1761238264821,0.07103093,110050.0,110040.0,0.6120862]
[1761238265009,0.18312823,110050.0,110040.0,0.6120862]
[1761238265214,0.35671873,110050.0,110040.0,0.6130862]
[1761238265921,0.19312823,110050.0,110040.0,0.6130862]
[1761238266122,0.35671873,110050.0,110040.0,0.6130862]
[1761238266624,0.26587143,110050.0,110040.0,0.6130862]
[1761238266818,0.35671893,110050.0,110040.0,0.6130862]
[1761238268924,0.10228093,110050.0,110040.0,0.6130862]
[1761238269118,0.26587143,110050.0,110040.0,0.6130862]
[1761238269314,0.19312833,110050.0,110040.0,0.6130862]
[1761238269514,0.35671883,110050.0,110040.0,0.4494957]
[1761238269714,0.35671883,110050.0,110040.0,0.6130862]
[1761238270014,0.01,110050.0,110040.0,0.4494957]
[1761238270213,0.10560093,110060.0,110050.0,0.1484874]
[1761238270415,0.10560093,110060.0,110050.0,0.6120778]
[1761238270615,0.26919143,110060.0,110050.0,0.6120778]
[1761238271015,0.09228093,110060.0,110050.0,0.6120778]
[1761238271322,0.26919143,110060.0,110050.0,0.4484873]
[1761238271527,0.26919143,110060.0,110050.0,0.6120778]
[1761238271823,0.44278193,110060.0,110050.0,0.45857818]
[1761238272125,0.41830396,110060.0,110050.0,0.45857818]
[1761238272823,0.41130396,110060.0,110050.0,0.45757818]
[1761238273226,0.41130396,110060.0,110050.0,0.45957818]
[1761238274724,0.386841,110060.0,110050.0,0.44656828]
[1761238275226,0.05966,110060.0,110050.0,0.44656828]
[1761238275426,0.386841,110060.0,110050.0,0.44656828]
[1761238276127,0.41128957,110060.0,110050.0,0.44656828]
[1761238276724,0.386841,110060.0,110050.0,0.44656828]
[1761238276923,0.43578193,110060.0,110050.0,0.35572088]
[1761238277721,0.92662103,110060.0,110050.0,0.34663]
[1761238277927,0.92662103,110060.0,110050.0,0.302]
[1761238277928,1.09021153,110060.0,110050.0,0.302]
[1761238278123,0.92662103,110060.0,110050.0,0.302]
[1761238279729,1.09021153,110060.0,110050.0,0.302]
[1761238280030,0.92662103,110060.0,110050.0,0.302]
[1761238281129,0.92662103,110060.0,110050.0,0.34663]
[1761238281325,0.4776801,110060.0,110050.0,0.4374775]
[1761238281629,0.4776801,110060.0,110050.0,0.34663]
[1761238282127,0.52662103,110060.0,110050.0,0.302]
[1761238282332,1.09021153,110060.0,110050.0,0.302]
[1761238284033,0.92662103,110060.0,110050.0,0.302]
[1761238284639,1.09021153,110060.0,110050.0,0.302]
[1761238285133,1.09021153,110060.0,110050.0,0.002]
[1761238285333,1.09021153,110060.0,110030.0,0.33665896]
[1761238285334,0.04435,110040.0,110030.0,0.33665896]
[1761238285533,0.38874355,110040.0,110030.0,0.63665896]
[1761238285733,0.64318955,110040.0,110030.0,0.63665896]
[1761238285935,0.23241405,110040.0,110030.0,0.63665896]
[1761238286134,0.04767355,110040.0,110030.0,0.63665896]
[1761238286336,0.21126405,110040.0,110030.0,0.63665896]
[1761238286934,0.21126405,110040.0,110030.0,0.64559471]
[1761238287136,0.02447355,110040.0,110030.0,0.64559471]
[1761238287834,0.02447355,110040.0,110030.0,0.65759471]
[1761238288338,0.02447355,110040.0,110030.0,0.65059471]
[1761238288634,0.02447355,110040.0,110030.0,0.64859471]
[1761238288836,0.02447355,110040.0,110030.0,0.64759471]
[1761238289232,0.04706355,110040.0,110030.0,0.64559471]
[1761238289536,0.02447355,110040.0,110030.0,0.64659471]
[1761238289840,0.02447355,110040.0,110030.0,0.96651471]
[1761238290741,0.02447355,110040.0,110030.0,0.9664621]
[1761238292036,0.02447355,110040.0,110030.0,0.94196174]
[1761238293133,0.02447355,110040.0,110030.0,0.9664621]
[1761238293940,0.05713886,110040.0,110030.0,0.9664621]
[1761238294441,0.10252886,110040.0,110030.0,0.9664621]
[1761238294743,0.07972886,110040.0,110030.0,0.9664621]
[1761238295138,0.05713886,110040.0,110030.0,0.9664621]
[1761238295941,0.02447355,110040.0,110030.0,1.3664621]
[1761238296841,0.02447355,110040.0,110030.0,1.20292421]
[1761238297042,0.02447355,110040.0,110030.0,1.3664621]
[1761238301247,0.02447355,110040.0,110030.0,1.20292421]
[1761238301447,0.24734144,110040.0,110030.0,0.46994421]
[1761238301649,0.24734144,110040.0,110030.0,0.78986421]
[1761238302037,0.05933,110040.0,110030.0,0.8114856]
[1761238302241,0.04539,110040.0,110030.0,0.8114856]
[1761238304149,0.10252886,110050.0,110040.0,0.1479353]
[1761238304346,0.10252886,110050.0,110040.0,0.47245794]
[1761238304864,0.11646886,110050.0,110040.0,0.47245794]
[1761238305046,0.28000675,110050.0,110040.0,0.45901794]
[1761238306137,0.28100675,110050.0,110040.0,0.45901794]
[1761238306341,0.11746886,110050.0,110040.0,0.45901794]
[1761238306543,0.28100675,110050.0,110040.0,0.45901794]
[1761238308252,0.2565332,110050.0,110040.0,0.45901794]
[1761238309456,0.3473828,110050.0,110040.0,0.45901794]
[1761238309646,0.39632373,110050.0,110040.0,0.4344953]
[1761238310155,0.39632373,110050.0,110040.0,0.34364]
[1761238310349,0.39632373,110050.0,110040.0,0.4344949]
[1761238312955,0.23278584,110050.0,110040.0,0.4344949]
[1761238313153,0.39632373,110050.0,110040.0,0.4344949]
[1761238314149,0.39632373,110050.0,110040.0,0.4474349]
[1761238314453,0.38238373,110050.0,110040.0,0.4474349]
[1761238314650,0.21884584,110050.0,110040.0,0.4474349]
[1761238315257,0.38238373,110050.0,110040.0,0.4474349]
[1761238316155,0.21884584,110050.0,110040.0,0.4474349]
[1761238319258,0.21884584,110050.0,110040.0,0.47195754]
[1761238320157,0.12799624,110050.0,110040.0,0.47195754]
[1761238320357,0.05577531,110050.0,110040.0,0.47195754]
[1761238320560,0.07747531,110050.0,110040.0,0.47195754]
[1761238320763,0.16832211,110050.0,110040.0,0.47195754]
[1761238320946,0.34527,110050.0,110040.0,0.47195754]
[1761238321154,0.39421093,110050.0,110040.0,0.45901754]
[1761238321757,0.39421093,110050.0,110040.0,0.47195754]
[1761238323049,0.38080093,110050.0,110040.0,0.47195754]
[1761238323456,0.21726304,110050.0,110040.0,0.47195754]
[1761238323757,0.12641624,110050.0,110040.0,0.47195754]
[1761238324657,0.21726294,110050.0,110040.0,0.47195754]
[1761238325157,0.12641624,110050.0,110040.0,0.47195754]
[1761238326259,0.07747531,110050.0,110040.0,0.47195754]
[1761238326461,0.16832201,110050.0,110040.0,0.47195754]
[1761238329063,0.07747531,110050.0,110040.0,0.47195754]
[1761238329271,0.16832191,110050.0,110040.0,0.47195754]
[1761238329456,0.07747531,110050.0,110040.0,0.47195754]
[1761238330263,0.19283767,110050.0,110040.0,0.47195754]
[1761238331069,0.10199107,110050.0,110040.0,0.47195754]
[1761238332062,0.05818107,110050.0,110040.0,0.63549543]
[1761238332261,0.169473,110090.0,110060.0,0.1487984]
[1761238332467,0.29484492,110090.0,110080.0,0.04502]
[1761238332672,0.39301155,110090.0,110080.0,0.34502]
[1761238332964,0.39301155,110090.0,110080.0,0.4358418]
[1761238333269,0.22947366,110090.0,110080.0,0.4358418]
[1761238333468,0.21337766,110090.0,110080.0,0.4358418]
[1761238333856,0.11015266,110090.0,110080.0,0.61231969]
[1761238334259,0.04481,110090.0,110080.0,0.61231969]
[1761238334461,0.04381,110090.0,110080.0,0.4497818]
[1761238334760,0.04481,110090.0,110080.0,0.4497818]
[1761238334959,0.04481,110090.0,110080.0,0.4487818]
[1761238335362,0.04381,110100.0,110090.0,0.1487737]
[1761238335665,0.1999055,110100.0,110090.0,0.6214595]
[1761238335867,0.1091001,110100.0,110090.0,0.6214595]
[1761238336659,0.0700901,110110.0,110100.0,0.1487653]
[1761238336970,0.04381,110120.0,110110.0,0.1487571]
[1761238337177,0.42488746,110140.0,110130.0,0.04502]
[1761238337472,0.26201013,110140.0,110130.0,0.4358006]
[1761238337773,0.22950834,110140.0,110130.0,0.4487406]
[1761238338175,0.17123413,110140.0,110130.0,0.4487406]
[1761238338469,0.12526698,110140.0,110130.0,0.4487406]
[1761238338670,0.12626698,110140.0,110130.0,0.61327849]
[1761238339063,0.12626698,110140.0,110130.0,0.61227849]
[1761238339372,0.04481,110140.0,110130.0,0.4497406]
[1761238340574,0.04381,110140.0,110130.0,0.4497406]
[1761238341374,0.04481,110140.0,110130.0,0.4497406]
[1761238341566,0.22175789,110140.0,110130.0,0.4368006]
[1761238341767,0.04481,110140.0,110130.0,0.4497406]
[1761238341968,0.001,110140.0,110130.0,0.4497406]
[1761238342178,0.3246,110150.0,110140.0,0.1037128]
[1761238342179,0.0048,110150.0,110140.0,0.1037128]
[1761238342477,0.02691,110150.0,110140.0,0.61227069]
[1761238342672,0.04861,110150.0,110140.0,0.93199069]
[1761238342874,0.0048,110150.0,110140.0,0.7684528]
[1761238343073,0.08625698,110150.0,110140.0,0.93199069]
[1761238343563,0.13070698,110150.0,110140.0,0.7684528]
[1761238343767,0.0048,110150.0,110140.0,0.93299069]
[1761238344074,0.0058,110150.0,110140.0,0.93299069]
[1761238344262,0.0058,110150.0,110140.0,0.93199069]
[1761238344668,0.0048,110150.0,110140.0,0.7704528]
[1761238344868,0.04925,110150.0,110140.0,0.93399069]
[1761238345675,0.04925,110150.0,110140.0,0.7704528]
[1761238345970,0.04925,110150.0,110140.0,0.93399069]
[1761238347178,0.04925,110150.0,110140.0,0.7704528]
[1761238347676,0.0048,110150.0,110140.0,0.7704528]
[1761238347877,0.0048,110150.0,110140.0,0.93399069]
[1761238349267,0.0048,110150.0,110140.0,0.7704528]
[1761238349470,0.0048,110150.0,110140.0,0.93399069]
[1761238350674,0.0048,110150.0,110140.0,1.09687962]
[1761238355573,0.04774,110150.0,110140.0,1.09687962]
[1761238355774,0.04774,110150.0,110140.0,0.93366621]
[1761238355979,0.0048,110150.0,110140.0,0.7704528]
[1761238356180,0.02625,110150.0,110140.0,1.09687962]
[1761238356482,0.0048,110150.0,110140.0,1.09687962]
[1761238357983,0.04774,110150.0,110140.0,0.61394621]
[1761238358292,0.04774,110150.0,110140.0,0.93350621]
[1761238358488,0.04774,110150.0,110140.0,0.4507328]
[1761238358685,0.22394341,110150.0,110140.0,0.437793]
[1761238359385,0.22394341,110150.0,110140.0,0.34702]
[1761238359786,0.22394341,110150.0,110140.0,0.437793]
[1761238360088,0.78715682,110150.0,110140.0,0.34702]
[1761238360288,0.62394341,110150.0,110140.0,0.34702]
[1761238360586,0.78715682,110150.0,110140.0,0.34702]
[1761238360781,0.62394341,110150.0,110140.0,0.34702]
[1761238361185,0.78715682,110150.0,110140.0,0.4377929]
[1761238361782,0.78715682,110150.0,110140.0,0.4357929]
[1761238362183,0.62394341,110150.0,110140.0,0.4357929]
[1761238365986,0.62394341,110150.0,110140.0,0.34502]
[1761238366191,0.62394341,110150.0,110140.0,0.4357927]
[1761238367988,0.04774,110150.0,110140.0,0.77564952]
[1761238368702,0.0048,110150.0,110140.0,0.77564952]
[1761238368996,0.0048,110150.0,110140.0,1.09532952]
[1761238371100,0.0048,110150.0,110140.0,1.11951955]
[1761238371288,0.53720341,110180.0,110170.0,0.04399]
[1761238371493,0.53720341,110180.0,110170.0,0.34399]
[1761238372097,0.70041682,110180.0,110170.0,0.34399]
[1761238372395,0.7327877,110180.0,110170.0,0.34399]
[1761238373501,0.7327877,110180.0,110170.0,0.4347382]
[1761238373900,0.70041682,110180.0,110170.0,0.34399]
[1761238374204,0.70041682,110180.0,110170.0,0.4347382]
[1761238374596,0.37399,110180.0,110170.0,0.4347382]
[1761238374801,0.70041682,110180.0,110170.0,0.4347382]
[1761238375604,0.53720341,110180.0,110170.0,0.4347382]
[1761238376104,0.37399,110180.0,110170.0,0.4347382]
[1761238376402,0.53720341,110180.0,110170.0,0.59795161]
[1761238376596,0.53720341,110180.0,110170.0,0.4347382]
[1761238377395,0.36058,110180.0,110170.0,0.61131161]
[1761238377595,0.52379341,110180.0,110170.0,0.61131161]
[1761238378407,0.53769341,110180.0,110170.0,0.61131161]
[1761238379604,0.53769341,110180.0,110170.0,0.59795161]
[1761238379998,0.53769341,110180.0,110170.0,0.4347382]
[1761238380705,0.70090682,110180.0,110170.0,0.4347382]
[1761238381698,0.37448,110180.0,110170.0,0.4347382]
[1761238381897,0.70090682,110180.0,110170.0,0.4347382]
[1761238382105,0.74942918,110180.0,110170.0,0.4347382]
[1761238382499,0.74980585,110180.0,110170.0,0.4347382]
[1761238383607,0.78240107,110180.0,110170.0,0.4347382]
[1761238385107,0.45597425,110180.0,110170.0,0.4347382]
[1761238385303,0.78240107,110180.0,110170.0,0.4347382]
[1761238385502,0.78440107,110180.0,110170.0,0.4347382]
[1761238386804,0.75180585,110180.0,110170.0,0.4347382]
[1761238387310,0.78438838,110180.0,110170.0,0.4347382]
[1761238387609,0.75180585,110180.0,110170.0,0.4347382]
[1761238387809,0.78438838,110180.0,110170.0,0.4347382]
[1761238388902,0.75180585,110180.0,110170.0,0.4347382]
[1761238389802,0.42537903,110180.0,110170.0,0.4347382]
[1761238390004,0.75180585,110180.0,110170.0,0.4347382]
[1761238390610,0.7354845,110180.0,110170.0,0.4347382]
[1761238391211,0.55837109,110180.0,110170.0,0.61131161]
[1761238392112,0.52579341,110180.0,110170.0,0.61131161]
[1761238392616,0.20615341,110180.0,110170.0,0.61131161]
[1761238392809,0.04294,110180.0,110170.0,0.61131161]
[1761238393418,0.04294,110180.0,110170.0,0.4480982]
[1761238393611,0.04294,110180.0,110170.0,0.61131161]
[1761238395318,0.20615341,110180.0,110170.0,0.61131161]
[1761238395518,0.04294,110180.0,110170.0,0.61131161]
[1761238395719,0.04294,110180.0,110170.0,0.4480982]
[1761238395929,0.20615341,110180.0,110170.0,0.61131161]
[1761238396529,0.04294,110180.0,110170.0,0.61131161]
[1761238396724,0.41426768,110190.0,110170.0,0.70205981]
[1761238396921,0.57744109,110190.0,110180.0,0.29769321]
[1761238397122,0.57744109,110190.0,110180.0,0.59769321]
[1761238397732,0.57744109,110190.0,110180.0,0.4344798]
[1761238397925,0.58244109,110190.0,110180.0,0.59769321]
[1761238398228,0.42013768,110190.0,110180.0,0.4344798]
[1761238398426,0.40623768,110190.0,110180.0,0.61105321]
[1761238398736,0.08667768,110190.0,110180.0,0.77426662]
[1761238399031,0.24989109,110190.0,110180.0,0.61105321]
[1761238399222,0.24489109,110190.0,110180.0,0.93053321]
[1761238399422,0.06519768,110190.0,110180.0,1.09374662]
[1761238399619,0.42377671,110200.0,110190.0,0.1040918]
[1761238399818,0.60847012,110200.0,110190.0,0.60104521]
[1761238400024,0.13876671,110210.0,110200.0,0.1478235]
[1761238400324,0.62154012,110210.0,110200.0,0.61103691]
[1761238400625,0.57264109,110210.0,110200.0,0.4478235]
[1761238400822,0.57264109,110210.0,110200.0,0.4344635]
[1761238401227,0.40942768,110210.0,110200.0,0.4344635]
[1761238401428,0.57264109,110210.0,110200.0,0.4344635]
[1761238401931,0.40942768,110210.0,110200.0,0.4344635]
[1761238402125,0.62154012,110210.0,110200.0,0.4344635]
[1761238402325,0.62151671,110210.0,110200.0,0.4344635]
[1761238402728,0.1257933,110210.0,110200.0,0.4477635]
[1761238402924,0.57593244,110210.0,110200.0,0.61097691]
[1761238403328,0.28900739,110210.0,110200.0,0.61097691]
[1761238403733,0.28900739,110210.0,110200.0,0.4477635]
[1761238404338,0.28900739,110210.0,110200.0,0.45707564]
[1761238404928,0.08149398,110210.0,110200.0,0.78350246]
[1761238405130,0.03259495,110210.0,110200.0,0.78350246]
[1761238405329,0.03259495,110210.0,110200.0,1.34671587]
[1761238405634,0.0048,110230.0,110220.0,0.1478069]
[1761238405826,0.0048,110230.0,110220.0,1.09407372]
[1761238406131,0.0048,110230.0,110220.0,1.49407372]
[1761238406336,0.04396,110260.0,110250.0,0.1480322]
[1761238406536,0.04396,110260.0,110250.0,0.34404]
[1761238406537,0.47457112,110260.0,110250.0,0.34404]
[1761238406725,0.31135771,110260.0,110250.0,0.4347225]
[1761238406925,0.31135771,110260.0,110250.0,0.44372539]
[1761238407131,0.1523261,110270.0,110260.0,0.1480243]
[1761238407437,0.31553951,110270.0,110260.0,0.4480243]
[1761238407732,0.63601951,110270.0,110260.0,0.4347143]
[1761238407930,0.4728061,110270.0,110260.0,0.4347143]
[1761238408132,0.63601951,110270.0,110260.0,0.4347143]
[1761238408336,0.63597951,110270.0,110260.0,0.4347143]
[1761238409228,0.31553951,110270.0,110260.0,0.4347143]
[1761238409430,0.63597951,110270.0,110260.0,0.4347143]
[1761238409830,0.4727661,110270.0,110260.0,0.4347143]
[1761238410138,0.63597951,110270.0,110260.0,0.4347143]
[1761238410337,0.31553951,110270.0,110260.0,0.4347143]
[1761238410533,0.63593951,110270.0,110260.0,0.4480243]
[1761238410739,0.63562259,110270.0,110260.0,0.4480243]
[1761238410934,0.63562259,110270.0,110260.0,0.32404]
[1761238411132,0.1481444,110260.0,110250.0,0.04404]
[1761238411331,0.31104089,110260.0,110250.0,0.4147226]
[1761238411831,0.54076649,110260.0,110250.0,0.4147226]
[1761238412033,0.63144089,110260.0,110250.0,0.4147226]
[1761238412934,0.4685444,110260.0,110250.0,0.4147226]
[1761238413235,0.63144089,110260.0,110250.0,0.4147226]
[1761238413438,0.37787,110260.0,110250.0,0.43707323]
[1761238414040,0.54076649,110260.0,110250.0,0.42376323]
[1761238414441,0.54072649,110260.0,110250.0,0.43707323]
[1761238415442,0.54072649,110260.0,110250.0,0.42376323]
[1761238417335,0.54072649,110260.0,110250.0,0.43707323]
[1761238418246,0.54064649,110260.0,110250.0,0.42376323]
[1761238419844,0.54064649,110260.0,110250.0,0.28]
[1761238420053,0.54064649,110260.0,110250.0,0.42372495]
[1761238420342,0.22036649,110260.0,110250.0,0.42372495]
[1761238420645,0.54068649,110260.0,110250.0,0.43703495]
[1761238420844,0.54068649,110260.0,110250.0,0.42372495]
[1761238421647,0.36428,110260.0,110250.0,0.43703495]
[1761238421843,0.04396,110260.0,110250.0,0.43703495]
[1761238422048,0.3644,110260.0,110250.0,0.43703495]
[1761238422347,0.04396,110260.0,110250.0,0.43703495]
[1761238422549,0.3644,110260.0,110250.0,0.43703495]
[1761238422843,0.04876,110270.0,110260.0,0.1480239]
[1761238423048,0.3692,110270.0,110260.0,0.61092039]
[1761238423253,0.0048,110270.0,110260.0,0.61092039]
[1761238423548,0.04876,110270.0,110260.0,0.61092039]
[1761238423847,0.04876,110270.0,110260.0,0.4480239]
[1761238424246,0.02676,110270.0,110260.0,0.4480239]
[1761238425043,0.0048,110270.0,110260.0,0.4480239]
[1761238425248,0.0048,110270.0,110260.0,1.33132039]
[1761238427252,0.0048,110270.0,110260.0,0.93132039]
[1761238427552,0.02676,110270.0,110260.0,0.93132039]
[1761238428744,0.0048,110270.0,110260.0,0.93132039]
[1761238429044,0.0048,110270.0,110260.0,0.7684239]
[1761238429244,0.0048,110270.0,110260.0,0.93132039]
[1761238429444,0.02676,110270.0,110260.0,0.61092039]
[1761238429646,0.0048,110270.0,110260.0,0.93128039]
[1761238430849,0.04876,110270.0,110260.0,0.84060649]
[1761238431050,0.04876,110270.0,110260.0,0.35735]
[1761238431253,0.04876,110270.0,110260.0,0.15404]
[1761238431254,0.22516649,110270.0,110260.0,0.15404]
[1761238431454,0.05747,110260.0,110250.0,0.05304255]
[1761238431654,0.05747,110260.0,110250.0,0.34404]
[1761238432042,0.22036649,110260.0,110250.0,0.35327841]
[1761238432251,0.05747,110260.0,110250.0,0.35327841]
[1761238432653,0.04396,110260.0,110250.0,0.45727081]
[1761238433757,0.04396,110260.0,110250.0,0.620167]
[1761238433957,0.04396,110260.0,110250.0,0.45727051]
[1761238434255,0.02196,110260.0,110250.0,0.45727051]
[1761238434449,0.04528,110260.0,110250.0,0.36658841]
[1761238434649,0.04528,110260.0,110250.0,0.45727051]
[1761238435447,0.07785946,110260.0,110250.0,0.45727051]
[1761238435957,0.09077946,110260.0,110250.0,0.45727061]
[1761238436155,0.07785946,110260.0,110250.0,0.45727061]
[1761238436453,0.12644167,110260.0,110250.0,0.45727061]
[1761238438059,0.08116167,110260.0,110250.0,0.45727061]
[1761238438257,0.05395946,110260.0,110250.0,0.6201671]
[1761238438450,0.05395946,110260.0,110250.0,0.45727061]
[1761238438656,0.05395946,110260.0,110250.0,0.6201671]
[1761238438847,0.03257946,110260.0,110250.0,0.6201671]
[1761238439954,0.03257946,110260.0,110250.0,0.45727061]
[1761238440158,0.24017595,110260.0,110250.0,0.36658841]
[1761238440356,0.09019946,110260.0,110250.0,0.35327841]
[1761238440562,0.09019946,110260.0,110250.0,0.44396061]
[1761238441051,0.07727946,110260.0,110250.0,0.45751061]
[1761238441559,0.09019946,110260.0,110250.0,0.45751061]
[1761238441760,0.07727946,110260.0,110250.0,0.45751061]
[1761238441957,0.09019946,110260.0,110250.0,0.45751081]
[1761238442159,0.05762,110260.0,110250.0,0.48170084]
[1761238442555,0.05762,110260.0,110250.0,0.46815084]
[1761238442760,0.22051649,110260.0,110250.0,0.37746844]
[1761238442961,0.22051649,110260.0,110250.0,0.46815084]
[1761238443163,0.05762,110260.0,110250.0,0.46815084]
[1761238443764,0.05762,110260.0,110250.0,0.37746844]
[1761238444363,0.36986,110270.0,110260.0,0.01355]
[1761238444574,0.36986,110270.0,110260.0,0.4487942]
[1761238444862,0.3699,110270.0,110260.0,0.4487942]
[1761238445063,0.3699,110270.0,110260.0,0.35812]
[1761238445263,0.38282,110270.0,110260.0,0.35812]
[1761238445467,0.54571649,110270.0,110260.0,0.35812]
[1761238445667,0.54571649,110270.0,110260.0,0.34457]
[1761238446164,0.54575649,110270.0,110260.0,0.4487941]
[1761238446364,0.36994,110270.0,110260.0,0.4487941]
[1761238447169,0.38286,110270.0,110260.0,0.4352441]
[1761238447466,0.36994,110270.0,110260.0,0.4487941]
[1761238447768,0.38286,110270.0,110260.0,0.4487941]
[1761238447974,0.38286,110270.0,110260.0,0.34457]
[1761238448160,0.54575649,110270.0,110260.0,0.34457]
[1761238448469,0.94575649,110270.0,110260.0,0.3]
[1761238448857,0.94575649,110270.0,110260.0,0.34457]
[1761238449969,0.54575649,110270.0,110260.0,0.34457]
[1761238450359,0.54575649,110270.0,110260.0,0.4352442]
[1761238450565,0.06242,110270.0,110260.0,0.4352442]
[1761238450765,0.38282,110270.0,110260.0,0.4487942]
[1761238451362,0.38282,110270.0,110260.0,0.47298423]
[1761238451866,0.38282,110270.0,110260.0,0.4487942]
[1761238452367,0.36986,110270.0,110260.0,0.4487942]
[1761238453271,0.32516,110270.0,110260.0,0.63588072]
[1761238453476,0.0048,110270.0,110260.0,1.33505069]
[1761238453768,0.0048,110270.0,110260.0,1.35924072]
[1761238454070,0.0048,110270.0,110260.0,1.39292247]
[1761238454862,0.0048,110270.0,110260.0,1.41884099]
[1761238455468,0.0048,110270.0,110260.0,1.56604099]
[1761238455870,0.0048,110270.0,110260.0,1.56304099]
[1761238456068,0.0048,110270.0,110260.0,1.53435924]
[1761238456268,0.0048,110270.0,110260.0,1.56672835]
[1761238456758,0.03737946,110310.0,110290.0,0.1468392]
[1761238457065,0.03737946,110310.0,110300.0,0.63201749]
[1761238457265,0.0048,110310.0,110300.0,0.93201749]
[1761238457659,0.0048,110310.0,110300.0,1.49491398]
[1761238457865,0.02478408,110320.0,110310.0,0.1437127]
[1761238458071,0.02478408,110320.0,110310.0,0.76950568]
[1761238458362,0.46085652,110470.0,110310.0,1.39497989]
[1761238458564,0.46085652,110470.0,110440.0,0.48868947]
[1761238458565,0.26023266,110470.0,110440.0,0.48868947]
[1761238458769,0.01292,110520.0,110460.0,0.33954116]
[1761238458961,0.01292,110500.0,110460.0,0.31357697]
[1761238459164,0.01292,110500.0,110480.0,0.43003446]
[1761238459366,0.02138,110500.0,110490.0,0.33954116]
[1761238459574,0.3796416,110500.0,110490.0,0.54042923]
[1761238459764,0.0402416,110500.0,110490.0,0.46054173]
[1761238460069,0.05762,110500.0,110490.0,0.89068346]
[1761238460276,0.01292,110500.0,110490.0,0.76032593]
[1761238460671,0.0891,110500.0,110490.0,0.36032593]
[1761238460969,0.0891,110500.0,110490.0,0.06032593]
[1761238460970,0.90053266,110500.0,110490.0,0.06032593]
[1761238461172,0.01292,110540.0,110490.0,0.06032593]
[1761238461173,0.01292,110540.0,110510.0,0.0904667]
[1761238461376,0.0581,110500.0,110490.0,0.28094979]
[1761238461576,0.42692,110500.0,110490.0,0.126093]
[1761238461870,0.79009266,110500.0,110490.0,0.12475333]
[1761238462071,0.00048,110530.0,110490.0,0.52475333]
[1761238462267,0.00048,110530.0,110490.0,0.0942222]
[1761238462268,0.04762,110500.0,110490.0,0.0942222]
[1761238462461,0.04762,110500.0,110490.0,0.7942222]
[1761238462663,0.04762,110500.0,110490.0,0.52588171]
[1761238462962,0.141,110510.0,110490.0,0.53717904]
[1761238463163,0.44595116,110500.0,110490.0,0.06473904]
[1761238463364,0.44595116,110500.0,110490.0,0.1278725]
[1761238463569,0.44595116,110500.0,110480.0,0.06313346]
[1761238463570,1.00642846,110500.0,110480.0,0.06313346]
[1761238463772,1.42994666,110490.0,110480.0,0.01396604]
[1761238463964,0.05326,110470.0,110460.0,0.00452632]
[1761238464265,0.08439,110480.0,110460.0,0.23817632]
[1761238464574,0.35536,110470.0,110460.0,0.23817632]
[1761238464874,0.03113,110480.0,110460.0,0.23817632]
[1761238465076,0.10641,110480.0,110470.0,0.47365]
[1761238465269,0.02202,110480.0,110470.0,0.88382447]
[1761238465577,1.35491526,110530.0,110490.0,0.07665]
[1761238465776,0.35504,110510.0,110490.0,0.48676569]
[1761238465970,1.26446116,110530.0,110490.0,0.48376569]
[1761238466170,0.46307,110510.0,110500.0,0.31561]
[1761238466371,0.80261116,110510.0,110490.0,0.31561]
[1761238466575,0.80261116,110510.0,110490.0,0.61561]
[1761238466876,0.44757116,110510.0,110500.0,0.31561]
[1761238467176,0.46275,110510.0,110500.0,0.35561]